fUST/lending_fUST_20240626
["ID","MTS","AMOUNT","RATE_DAILY","PERIOD"]
[330427219,1719381040827,-500.0,0.00016438,2]
[330427220,1719381040836,-503.03475977,0.00016438,2]
[330427221,1719381040845,-500.0,0.00016438,2]
[330427222,1719381040855,-676.54,0.00016438,2]
[330427223,1719381040864,-4217.14,0.00016438,2]
[330427224,1719381040873,-1486.4,0.00016438,2]
[330427225,1719381040882,-503.10196612,0.00016438,2]
[330427226,1719381040892,-877.64,0.00016438,2]
[330427227,1719381040901,-500.0,0.00016438,2]
[330427228,1719381040910,-500.0,0.00016438,2]
[330427229,1719381040919,-4225.96,0.00016438,2]
[330427230,1719381040929,-500.0,0.00016438,2]
[330427231,1719381040938,-500.0,0.00016438,2]
[330427232,1719381040948,-500.0,0.00016438,2]
[330427233,1719381040957,-752.04,0.00016438,2]
[330427234,1719381040966,-500.0,0.00016438,2]
[330427235,1719381040976,-1384.54,0.00016438,2]
[330427236,1719381040985,-500.0,0.00016438,2]
[330427237,1719381040994,-500.0,0.00016438,2]
[330427238,1719381041116,-500.0,0.00016438,2]
[330427239,1719381041126,-500.0,0.00016438,2]
[330427240,1719381041136,-500.0,0.00016438,2]
[330427241,1719381041146,-3419.67,0.00016438,2]
[330427242,1719381041159,-623.42,0.00016438,2]
[330427243,1719381041169,-500.0,0.00016438,2]
[330427244,1719381041179,-500.0,0.00016438,2]
[330427245,1719381041189,-166.406082,0.00016438,2]
[330427246,1719381041199,-276.11669524,0.000165,2]
[330427247,1719381041208,-152909.58148017,0.000165,2]
[330427248,1719381041409,-402.852,0.000165,2]
[330427264,1719381043095,-930.7,0.00016438,2]
[330427265,1719381043104,-73.69086473,0.000165,2]
[330427368,1719381358069,-504.73333894,0.00016,2]
[330427369,1719381358093,-876.0,0.00016096,2]
[330427473,1719382238245,-200.565888,0.00015975,2]
[330427474,1719382238255,-289.32368854,0.00016,2]
[330427475,1719382238268,-215.4096504,0.00016,2]
[330427476,1719382238278,-99.9049283,0.00016076,2]
[330427479,1719382238380,-267.9155,0.00016076,2]
[330427795,1719382242341,-252.18667828,0.00016076,2]
[330427797,1719382242351,-2824.75254592,0.00016096,2]
[330427844,1719382243538,-373.92750671,0.00016096,2]
[330427920,1719382247504,-569.5847347,0.00016096,2]
[330427921,1719382247515,-876.0,0.00016096,2]
[330427923,1719382247527,-1180.48775859,0.00016357,2]
[330427925,1719382263736,883.33,0.00010959,2]
[330427926,1719382315824,409.13460124,0.00013283,2]
[330427927,1719382352920,723.78639686,0.00013283,2]
[330427928,1719382361796,1117.74863961,0.00013283,2]
[330427929,1719382362121,2129.2320514,0.00013283,2]
[330427930,1719382367455,3768.26478733,0.00010959,2]
[330427932,1719382478439,955.06808893,0.00010959,2]
[330427933,1719382478462,2813.1966984,0.00010959,2]
[330427934,1719382526932,3768.26478733,0.00013283,2]
[330427935,1719382581941,3768.26478733,0.00013283,2]
[330427936,1719382707951,1037.21064463,0.00013283,2]
[330427941,1719383349854,1000.0,0.00024,59]
[330427968,1719383433190,-302.0,0.00015899,2]
[330427970,1719383433203,-4.21363925,0.00015899,2]
[330427972,1719383433213,-2040.81356743,0.00015988,2]
[330427974,1719383433223,-1000.0,0.00016,5]
[330427976,1719383433232,-150.0,0.00016088,2]
[330427978,1719383433241,-876.0,0.00016088,2]
[330427980,1719383433250,-933.34700406,0.00016117,2]
[330427982,1719383433259,-1231.92578926,0.00016337,2]
[330428127,1719383438750,-531.11088939,0.00016075,2]
[330428128,1719383438761,-9915.52464088,0.00016337,2]
[330428129,1719383438774,-1164.89240836,0.00016338,2]
[330428131,1719383438785,-852.80066208,0.00016338,2]
[330428133,1719383438794,-1000.0,0.00016437,2]
[330428134,1719383438804,-164.76717871,0.00016437,2]
[330428136,1719383438815,-500.0,0.00016438,2]
[330428138,1719383438825,-3163.54787715,0.00016438,2]
[330428139,1719383438838,-494.82212285,0.00016438,2]
[330428140,1719383438848,-500.0,0.00016438,2]
[330428141,1719383438858,-743.94,0.00016438,2]
[330428142,1719383438867,-500.0,0.00016438,2]
[330428143,1719383438877,-4240.22,0.00016438,2]
[330428144,1719383438895,-4240.22,0.00016438,2]
[330428145,1719383438905,-4240.22,0.00016438,2]
[330428146,1719383438915,-4240.22,0.00016438,2]
[330428147,1719383438926,-991.45,0.00016438,2]
[330428148,1719383438935,-509.71231118,0.00016438,2]
[330428149,1719383438946,-500.0,0.00016438,2]
[330428150,1719383438955,-500.0,0.00016438,2]
[330428151,1719383438968,-500.0,0.00016438,2]
[330428152,1719383438978,-500.0,0.00016438,2]
[330428153,1719383438987,-500.0,0.00016438,2]
[330428154,1719383438997,-500.0,0.00016438,2]
[330428155,1719383439007,-500.0,0.00016438,2]
[330428156,1719383439187,-1092.37,0.00016438,2]
[330428157,1719383439197,-500.0,0.00016438,2]
[330428158,1719383439207,-506.09463135,0.00016438,2]
[330428159,1719383439217,-500.0,0.00016438,2]
[330428160,1719383439226,-574.88,0.00016438,2]
[330428161,1719383439235,-500.0,0.00016438,2]
[330428162,1719383439245,-500.0,0.00016438,2]
[330428163,1719383439254,-500.0,0.00016438,2]
[330428164,1719383439264,-500.0,0.00016438,2]
[330428165,1719383439274,-500.0,0.00016438,2]
[330428166,1719383439283,-500.0,0.00016438,2]
[330428167,1719383439292,-630.46,0.00016438,2]
[330428168,1719383439301,-1610.68,0.00016438,2]
[330428169,1719383439311,-500.0,0.00016438,2]
[330428170,1719383439320,-500.0,0.00016438,2]
[330428171,1719383439329,-500.0,0.00016438,2]
[330428172,1719383439339,-500.0,0.00016438,2]
[330428173,1719383439349,-511.28733099,0.00016438,2]
[330428174,1719383439359,-500.0,0.00016438,2]
[330428175,1719383439368,-500.0,0.00016438,2]
[330428176,1719383439378,-891.92,0.00016438,2]
[330428177,1719383439387,-500.0,0.00016438,2]
[330428178,1719383439396,-921.77,0.00016438,2]
[330428179,1719383439405,-500.0,0.00016438,2]
[330428180,1719383439414,-500.0,0.00016438,2]
[330428181,1719383439423,-882.92,0.00016438,2]
[330428182,1719383439433,-500.0,0.00016438,2]
[330428183,1719383439442,-500.0,0.00016438,2]
[330428184,1719383439451,-481.57260215,0.00016438,2]
[330428185,1719383439462,-500.0,0.00016438,2]
[330428186,1719383439472,-500.0,0.00016438,2]
[330428187,1719383439482,-863.55,0.00016438,2]
[330428188,1719383439491,-500.0,0.00016438,2]
[330428189,1719383439501,-500.0,0.00016438,2]
[330428190,1719383439511,-1226.7,0.00016438,2]
[330428191,1719383439520,-3277.19,0.00016438,2]
[330428192,1719383439530,-500.0,0.00016438,2]
[330428193,1719383439541,-500.0,0.00016438,2]
[330428194,1719383439550,-500.0,0.00016438,2]
[330428195,1719383439560,-500.0,0.00016438,2]
[330428196,1719383439570,-604.66,0.00016438,2]
[330428197,1719383439579,-500.0,0.00016438,2]
[330428198,1719383439589,-787.67,0.00016438,2]
[330428199,1719383439599,-841.07,0.00016438,2]
[330428200,1719383439608,-500.0,0.00016438,2]
[330428201,1719383439618,-504.65,0.00016438,2]
[330428202,1719383439628,-1049.19,0.00016438,2]
[330428203,1719383439639,-500.0,0.00016438,2]
[330428204,1719383439649,-500.0,0.00016438,2]
[330428205,1719383439659,-500.0,0.00016438,2]
[330428206,1719383439668,-500.0,0.00016438,2]
[330428207,1719383439678,-500.0,0.00016438,2]
[330428208,1719383439688,-500.0,0.00016438,2]
[330428209,1719383439698,-597.44,0.00016438,2]
[330428210,1719383439708,-500.0,0.00016438,2]
[330428211,1719383439718,-1470.08,0.00016438,2]
[330428212,1719383439728,-8285.23,0.00016438,2]
[330428213,1719383439739,-500.0,0.00016438,2]
[330428214,1719383439750,-500.0,0.00016438,2]
[330428215,1719383439760,-1458.08,0.00016438,2]
[330428216,1719383439771,-500.0,0.00016438,2]
[330428217,1719383439782,-966.33,0.00016438,2]
[330428218,1719383439792,-536.29,0.00016438,2]
[330428219,1719383439803,-681.43,0.00016438,2]
[330428220,1719383439814,-500.0,0.00016438,2]
[330428221,1719383439824,-500.0,0.00016438,2]
[330428222,1719383439835,-500.0,0.00016438,2]
[330428223,1719383439846,-508.00338206,0.00016438,2]
[330428224,1719383439856,-500.0,0.00016438,2]
[330428225,1719383439867,-500.0,0.00016438,2]
[330428226,1719383439878,-500.0,0.00016438,2]
[330428227,1719383439892,-500.0,0.00016438,2]
[330428228,1719383439903,-500.0,0.00016438,2]
[330428229,1719383439913,-500.0,0.00016438,2]
[330428230,1719383439926,-500.0,0.00016438,2]
[330428231,1719383439936,-1014.58,0.00016438,2]
[330428232,1719383439947,-1321.58,0.00016438,2]
[330428233,1719383439957,-500.0,0.00016438,2]
[330428234,1719383439969,-500.0,0.00016438,2]
[330428235,1719383439979,-500.0,0.00016438,2]
[330428236,1719383439989,-500.0,0.00016438,2]
[330428237,1719383439999,-1193.68,0.00016438,2]
[330428238,1719383440010,-500.0,0.00016438,2]
[330428239,1719383440020,-388.68237428,0.00016438,2]
[330428240,1719383440031,-837.26,0.00016438,2]
[330428241,1719383440041,-500.0,0.00016438,2]
[330428242,1719383440052,-500.0,0.00016438,2]
[330428243,1719383440062,-920.03,0.00016438,2]
[330428244,1719383440073,-3085.93,0.00016438,2]
[330428245,1719383440083,-1041.03,0.00016438,2]
[330428246,1719383440093,-505.04973462,0.00016438,2]
[330428247,1719383440104,-500.0,0.00016438,2]
[330428248,1719383440113,-500.0,0.00016438,2]
[330428249,1719383440124,-539.33,0.00016438,2]
[330428250,1719383440135,-500.0,0.00016438,2]
[330428253,1719383440145,-500.0,0.00016438,2]
[330428255,1719383440156,-500.0,0.00016438,2]
[330428257,1719383440166,-500.0,0.00016438,2]
[330428260,1719383440175,-1343.83,0.00016438,2]
[330428262,1719383440185,-688.12,0.00016438,2]
[330428264,1719383440195,-646.2,0.00016438,2]
[330428265,1719383440205,-509.93,0.00016438,2]
[330428266,1719383440215,-500.0,0.00016438,2]
[330428267,1719383440225,-500.0,0.00016438,2]
[330428268,1719383440235,-500.0,0.00016438,2]
[330428269,1719383440246,-605.13384022,0.00016438,2]
[330428270,1719383440256,-964.96,0.00016438,2]
[330428271,1719383440266,-500.0,0.00016438,2]
[330428272,1719383440277,-500.0,0.00016438,2]
[330428273,1719383440287,-295.71795733,0.00016438,2]
[330428274,1719383440298,-498.85347951,0.00016438,2]
[330428275,1719383440308,-500.0,0.00016438,2]
[330428276,1719383440319,-775.1,0.00016438,2]
[330428277,1719383440330,-253.15034177,0.00016438,2]
[330428278,1719383440340,-171.5,0.00016438,2]
[330428280,1719383440350,-11855.28,0.00016438,2]
[330428281,1719383440361,-500.0,0.00016438,2]
[330428283,1719383440372,-1687.08,0.00016438,2]
[330428285,1719383440381,-1828.26,0.00016438,2]
[330428288,1719383440391,-500.0,0.00016438,2]
[330428290,1719383440401,-500.0,0.00016438,2]
[330428292,1719383440412,-500.0,0.00016438,2]
[330428294,1719383440421,-500.0,0.00016438,2]
[330428296,1719383440432,-500.0,0.00016438,2]
[330428298,1719383440442,-378.19865341,0.00016438,2]
[330428300,1719383440452,-500.0,0.00016438,2]
[330428302,1719383440463,-3110.47,0.00016438,2]
[330428304,1719383440473,-565.83,0.00016438,2]
[330428306,1719383440483,-500.0,0.00016438,2]
[330428308,1719383440492,-5585.88,0.00016438,2]
[330428310,1719383440503,-500.0,0.00016438,2]
[330428312,1719383440514,-500.0,0.00016438,2]
[330428314,1719383440525,-5515.39,0.00016438,2]
[330428316,1719383440536,-962.1,0.00016438,2]
[330428318,1719383440546,-197.05411724,0.00016438,2]
[330428320,1719383440556,-500.0,0.00016438,2]
[330428321,1719383440567,-500.0,0.00016438,2]
[330428323,1719383440577,-500.0,0.00016438,2]
[330428325,1719383440587,-500.0,0.00016438,2]
[330428327,1719383440597,-500.0,0.00016438,2]
[330428329,1719383440608,-710.85,0.00016438,2]
[330428330,1719383440617,-500.0,0.00016438,2]
[330428332,1719383440627,-4321.54,0.00016438,2]
[330428334,1719383440638,-500.0,0.00016438,2]
[330428336,1719383440647,-2267.6,0.00016438,2]
[330428338,1719383440658,-500.0,0.00016438,2]
[330428340,1719383440668,-500.0,0.00016438,2]
[330428341,1719383440678,-500.0,0.00016438,2]
[330428342,1719383440688,-500.0,0.00016438,2]
[330428343,1719383440698,-500.0,0.00016438,2]
[330428344,1719383440707,-15448.03,0.00016438,2]
[330428346,1719383440717,-650.61,0.00016438,2]
[330428348,1719383440727,-1326.85,0.00016438,2]
[330428350,1719383440736,-1025.84,0.00016438,2]
[330428351,1719383440746,-714.33,0.00016438,2]
[330428353,1719383440757,-500.0,0.00016438,2]
[330428354,1719383440767,-783.2,0.00016438,2]
[330428355,1719383440778,-500.0,0.00016438,2]
[330428356,1719383440787,-1279.16,0.00016438,2]
[330428357,1719383440797,-522.34140576,0.00016438,2]
[330428358,1719383440810,-500.0,0.00016438,2]
[330428360,1719383440820,-4410.8,0.00016438,2]
[330428362,1719383440830,-1682.19,0.00016438,2]
[330428364,1719383440840,-5031.24,0.00016438,2]
[330428365,1719383440849,-245.46565545,0.00016438,2]
[330428367,1719383440860,-2409.85,0.00016438,2]
[330428369,1719383440869,-500.0,0.00016438,2]
[330428371,1719383440883,-10918.68,0.00016438,2]
[330428373,1719383440895,-850.09,0.00016438,2]
[330428375,1719383440906,-540.08,0.00016438,2]
[330428376,1719383440916,-500.0,0.00016438,2]
[330428377,1719383440927,-4553.85,0.00016438,2]
[330428378,1719383440938,-1489.66,0.00016438,2]
[330428379,1719383440948,-500.0,0.00016438,2]
[330428380,1719383440958,-500.0,0.00016438,2]
[330428381,1719383440969,-500.0,0.00016438,2]
[330428382,1719383440979,-500.0,0.00016438,2]
[330428383,1719383440990,-2622.54,0.00016438,2]
[330428384,1719383440999,-500.0,0.00016438,2]
[330428386,1719383441009,-500.0,0.00016438,2]
[330428388,1719383441019,-500.0,0.00016438,2]
[330428390,1719383441030,-500.0,0.00016438,2]
[330428391,1719383441039,-681.83,0.00016438,2]
[330428392,1719383441049,-27579.93,0.00016438,2]
[330428393,1719383441058,-305.93006011,0.000165,2]
[330428394,1719383441224,-5852.3988861,0.000165,2]
[330428395,1719383441237,-377.35956123,0.000165,2]
[330428396,1719383441341,-3486.56845153,0.000165,2]
[330428397,1719383441353,-359.50100004,0.000165,2]
[330428398,1719383441365,-354.59455097,0.000165,2]
[330428399,1719383441376,-999.9933705,0.000165,2]
[330428400,1719383441388,-6234.3779815,0.000165,2]
[330428427,1719383443962,-40020.05920403,0.000165,2]
[330428429,1719383443974,-6022.64585568,0.000165,2]
[330428432,1719383443986,-4955.14211757,0.000165,2]
[330428433,1719383443998,-1541.0,0.000165,2]
[330428463,1719383446869,-500.0,0.00016438,2]
[330428465,1719383446881,-500.0,0.00016438,2]
[330428467,1719383446893,-500.0,0.00016438,2]
[330428468,1719383446905,-6353.23070642,0.000165,2]
[330428470,1719383446916,-636.5613204,0.000165,2]
[330428472,1719383446928,-3111.1,0.000165,2]
[330428551,1719384643159,-2115.78838011,0.00015992,2]
[330428552,1719384643169,-1000.0,0.00016,5]
[330428553,1719384643180,-620.00035533,0.00016036,2]
[330428554,1719384643190,-227.12907681,0.00016115,2]
[330428555,1719384643200,-876.0,0.00016116,2]
[330428556,1719384643210,-153.0,0.000164,2]
[330428557,1719384643220,-205.8057007,0.000164,2]
[330428558,1719384643230,-1000.0,0.00016437,2]
[330428559,1719384643240,-500.0,0.00016438,2]
[330428560,1719384643254,-500.0,0.00016438,2]
[330428561,1719384643268,-500.0,0.00016438,2]
[330428562,1719384643279,-500.0,0.00016438,2]
[330428563,1719384643288,-500.0,0.00016438,2]
[330428564,1719384643302,-3909.26,0.00016438,2]
[330428565,1719384643312,-500.0,0.00016438,2]
[330428566,1719384643323,-500.0,0.00016438,2]
[330428567,1719384643334,-500.0,0.00016438,2]
[330428568,1719384643345,-12127.1,0.00016438,2]
[330428569,1719384643355,-500.0,0.00016438,2]
[330428570,1719384643365,-500.0,0.00016438,2]
[330428571,1719384643375,-343.53456969,0.00016438,2]
[330428572,1719384643386,-653.03,0.00016438,2]
[330428573,1719384643396,-500.0,0.00016438,2]
[330428574,1719384643406,-500.0,0.00016438,2]
[330428576,1719384643415,-542.25,0.00016438,2]
[330428577,1719384643425,-500.0,0.00016438,2]
[330428578,1719384643434,-1055.63,0.00016438,2]
[330428580,1719384643444,-500.0,0.00016438,2]
[330428582,1719384643458,-500.0,0.00016438,2]
[330428583,1719384643467,-881.69,0.00016438,2]
[330428584,1719384643477,-854.76,0.00016438,2]
[330428585,1719384643487,-883.37,0.00016438,2]
[330428586,1719384643504,-516.86,0.00016438,2]
[330428587,1719384643515,-802.37,0.00016438,2]
[330428588,1719384643526,-500.0,0.00016438,2]
[330428589,1719384643537,-500.0,0.00016438,2]
[330428590,1719384643547,-500.0,0.00016438,2]
[330428591,1719384643558,-893.53,0.00016438,2]
[330428592,1719384643568,-500.0,0.00016438,2]
[330428593,1719384643579,-500.0,0.00016438,2]
[330428594,1719384643590,-500.0,0.00016438,2]
[330428595,1719384643599,-500.0,0.00016438,2]
[330428596,1719384643609,-702.6,0.00016438,2]
[330428597,1719384643619,-500.0,0.00016438,2]
[330428598,1719384643629,-500.0,0.00016438,2]
[330428599,1719384643638,-579.46,0.00016438,2]
[330428600,1719384643648,-500.0,0.00016438,2]
[330428601,1719384643658,-500.0,0.00016438,2]
[330428602,1719384643668,-500.0,0.00016438,2]
[330428603,1719384643678,-500.0,0.00016438,2]
[330428604,1719384643688,-3533.52,0.00016438,2]
[330428605,1719384643699,-3533.52,0.00016438,2]
[330428606,1719384643708,-1257.44,0.00016438,2]
[330428607,1719384643717,-754.85,0.00016438,2]
[330428608,1719384643727,-3533.52,0.00016438,2]
[330428609,1719384643736,-3533.52,0.00016438,2]
[330428610,1719384643748,-3533.52,0.00016438,2]
[330428611,1719384643757,-3533.52,0.00016438,2]
[330428612,1719384643766,-500.0,0.00016438,2]
[330428613,1719384643776,-1109.65,0.00016438,2]
[330428614,1719384643786,-500.79,0.00016438,2]
[330428615,1719384643796,-500.0,0.00016438,2]
[330428617,1719384643996,-500.0,0.00016438,2]
[330428618,1719384644006,-500.0,0.00016438,2]
[330428619,1719384644016,-500.0,0.00016438,2]
[330428620,1719384644026,-500.0,0.00016438,2]
[330428621,1719384644037,-500.0,0.00016438,2]
[330428622,1719384644046,-1535.14,0.00016438,2]
[330428623,1719384644056,-500.0,0.00016438,2]
[330428624,1719384644066,-1009.4,0.00016438,2]
[330428625,1719384644076,-1480.66,0.00016438,2]
[330428626,1719384644085,-513.95,0.00016438,2]
[330428627,1719384644095,-991.81,0.00016438,2]
[330428628,1719384644105,-500.0,0.00016438,2]
[330428629,1719384644114,-500.0,0.00016438,2]
[330428630,1719384644124,-500.0,0.00016438,2]
[330428631,1719384644133,-500.0,0.00016438,2]
[330428632,1719384644143,-500.0,0.00016438,2]
[330428633,1719384644152,-500.0,0.00016438,2]
[330428634,1719384644162,-500.0,0.00016438,2]
[330428635,1719384644171,-609.50664343,0.00016438,2]
[330428636,1719384644182,-500.0,0.00016438,2]
[330428637,1719384644191,-500.0,0.00016438,2]
[330428638,1719384644201,-500.0,0.00016438,2]
[330428639,1719384644211,-1143.94,0.00016438,2]
[330428640,1719384644220,-500.0,0.00016438,2]
[330428641,1719384644230,-1080.99,0.00016438,2]
[330428642,1719384644240,-500.0,0.00016438,2]
[330428643,1719384644251,-500.0,0.00016438,2]
[330428644,1719384644263,-500.0,0.00016438,2]
[330428645,1719384644274,-3087.24,0.00016438,2]
[330428646,1719384644283,-250.9795718,0.00016438,2]
[330428647,1719384644293,-500.0,0.00016438,2]
[330428648,1719384644305,-500.0,0.00016438,2]
[330428649,1719384644315,-222.43512526,0.00016438,2]
[330428650,1719384644325,-500.0,0.00016438,2]
[330428651,1719384644334,-500.0,0.00016438,2]
[330428652,1719384644347,-742.78,0.00016438,2]
[330428654,1719384644358,-500.0,0.00016438,2]
[330428656,1719384644369,-572.02,0.00016438,2]
[330428658,1719384644378,-572.55,0.00016438,2]
[330428659,1719384644389,-500.0,0.00016438,2]
[330428660,1719384644399,-517.58,0.00016438,2]
[330428661,1719384644409,-500.0,0.00016438,2]
[330428662,1719384644419,-500.0,0.00016438,2]
[330428663,1719384644430,-500.0,0.00016438,2]
[330428664,1719384644439,-500.0,0.00016438,2]
[330428665,1719384644448,-500.0,0.00016438,2]
[330428666,1719384644458,-3184.52,0.00016438,2]
[330428667,1719384644467,-500.0,0.00016438,2]
[330428668,1719384644476,-710.5,0.00016438,2]
[330428669,1719384644487,-500.0,0.00016438,2]
[330428670,1719384644497,-157.2,0.00016438,2]
[330428671,1719384644506,-500.0,0.00016438,2]
[330428672,1719384644515,-2596.6,0.00016438,2]
[330428673,1719384644525,-806.03,0.00016438,2]
[330428674,1719384644535,-500.0,0.00016438,2]
[330428675,1719384644545,-500.0,0.00016438,2]
[330428676,1719384644554,-500.0,0.00016438,2]
[330428677,1719384644563,-1700.12,0.00016438,2]
[330428678,1719384644572,-500.0,0.00016438,2]
[330428679,1719384644583,-500.0,0.00016438,2]
[330428680,1719384644592,-1130.19,0.00016438,2]
[330428681,1719384644601,-28042.38,0.00016438,2]
[330428682,1719384644611,-1835.42,0.00016438,2]
[330428683,1719384644622,-500.0,0.00016438,2]
[330428684,1719384644633,-500.0,0.00016438,2]
[330428685,1719384644642,-500.0,0.00016438,2]
[330428686,1719384644651,-2980.87,0.00016438,2]
[330428687,1719384644661,-5542.35,0.00016438,2]
[330428688,1719384644672,-8202.19,0.00016438,2]
[330428689,1719384644681,-550.92,0.00016438,2]
[330428690,1719384644690,-500.0,0.00016438,2]
[330428691,1719384644700,-5519.47,0.00016438,2]
[330428692,1719384644710,-500.0,0.00016438,2]
[330428693,1719384644720,-500.0,0.00016438,2]
[330428694,1719384644729,-500.0,0.00016438,2]
[330428695,1719384644739,-500.0,0.00016438,2]
[330428696,1719384644749,-681.24,0.00016438,2]
[330428697,1719384644759,-1066.43,0.00016438,2]
[330428698,1719384644768,-984.51,0.00016438,2]
[330428699,1719384644779,-500.0,0.00016438,2]
[330428700,1719384644789,-1647.74,0.00016438,2]
[330428701,1719384644798,-500.0,0.00016438,2]
[330428702,1719384644808,-500.0,0.00016438,2]
[330428703,1719384644817,-4373.67,0.00016438,2]
[330428704,1719384644828,-500.0,0.00016438,2]
[330428705,1719384644839,-674.39,0.00016438,2]
[330428706,1719384644848,-500.0,0.00016438,2]
[330428707,1719384644857,-1287.83,0.00016438,2]
[330428708,1719384644868,-500.0,0.00016438,2]
[330428709,1719384644877,-500.0,0.00016438,2]
[330428710,1719384644887,-2297.16,0.00016438,2]
[330428711,1719384644896,-500.0,0.00016438,2]
[330428712,1719384644905,-500.0,0.00016438,2]
[330428713,1719384644916,-833.9,0.00016438,2]
[330428714,1719384644926,-316.26058757,0.00016438,2]
[330428715,1719384644935,-1308.28,0.00016438,2]
[330428716,1719384644945,-500.0,0.00016438,2]
[330428717,1719384644954,-1674.6,0.00016438,2]
[330428718,1719384644964,-500.0,0.00016438,2]
[330428719,1719384644973,-878.14,0.00016438,2]
[330428720,1719384644982,-2417.87,0.00016438,2]
[330428721,1719384644992,-500.0,0.00016438,2]
[330428722,1719384645001,-11130.39,0.00016438,2]
[330428723,1719384645010,-14887.7,0.00016438,2]
[330428724,1719384645020,-500.0,0.00016438,2]
[330428725,1719384645029,-684.57,0.00016438,2]
[330428726,1719384645038,-1309.2,0.00016438,2]
[330428727,1719384645047,-500.0,0.00016438,2]
[330428728,1719384645057,-929.47,0.00016438,2]
[330428729,1719384645067,-1004.23,0.00016438,2]
[330428730,1719384645076,-1416.25095292,0.00016438,2]
[330428731,1719384645092,-800.0,0.00016438,2]
[330428732,1719384645104,-641.80489149,0.00016438,2]
[330428733,1719384645246,-205.8057007,0.000164,2]
[330428734,1719384645260,-1533.55415559,0.00016438,2]
[330428735,1719384645273,-604.19,0.00016438,2]
[330428736,1719384645283,-500.0,0.00016438,2]
[330428737,1719384645293,-500.0,0.00016438,2]
[330428738,1719384645306,-4784.63382672,0.00016438,2]
[330428751,1719384647284,-538.78617328,0.00016438,2]
[330428753,1719384647294,-500.0,0.00016438,2]
[330428754,1719384647307,-500.0,0.00016438,2]
[330428755,1719384647316,-573.29348357,0.00016438,2]
[330428756,1719384647327,-500.0,0.00016438,2]
[330428757,1719384647337,-814.67,0.00016438,2]
[330428758,1719384647349,-378.92081545,0.00016438,2]
[330428759,1719384647360,-582.21518234,0.00016438,2]
[330428760,1719384647370,-1510.92,0.00016438,2]
[330428761,1719384647379,-500.0,0.00016438,2]
[330428762,1719384647388,-1376.65,0.00016438,2]
[330428763,1719384647398,-673.63,0.00016438,2]
[330428764,1719384647407,-500.0,0.00016438,2]
[330428765,1719384647418,-507.38893067,0.00016438,2]
[330428766,1719384647428,-4447.44,0.00016438,2]
[330428767,1719384647437,-500.0,0.00016438,2]
[330428768,1719384647447,-500.0,0.00016438,2]
[330428769,1719384647458,-500.0,0.00016438,2]
[330428770,1719384647468,-500.0,0.00016438,2]
[330428771,1719384647477,-500.0,0.00016438,2]
[330428772,1719384647487,-8839.1602391,0.000165,2]
[330428773,1719384647500,-502.3796954,0.000165,2]
[330428781,1719384904347,10000.0,0.00014,2]
[330428782,1719384909837,514.8,0.000225,30]
[330428784,1719385152820,1049.09,0.00014,2]
[330428817,1719385832327,-310.0,0.00015992,2]
[330428819,1719385832339,-49.04909499,0.00015992,2]